Cogmind - Beta 11 @@@ ROGUE MODE // 2022.03.27 @ 12:52:08 Player: Happytimes Result: Self-destructed Performance ------------- Evolutions (2) 1000 Regions Visited (5) 1000 Robots Destroyed (21) 105 Value Destroyed (528) 528 Prototype IDs (1) 20 Alien Tech Used (0) 0 Bonus (75) 75 TOTAL SCORE: 2728 Bonus ------- Follower Combat Kills 75 Cogmind --------- Core Integrity 481/550 Matter 300/300 Energy 5/265 System Corruption 0% Temperature Cool (0) Movement Hovering (48) Location -8/Materials Parts ------- > --- POWER (1) -------- Improved Ion Engine > --- PROPULSION (4) --- Airjet Airjet Airjet Airjet > --- UTILITY (4) ------ Small Storage Unit Sensor Array Improved Shield Generator > --- WEAPON (2) ------- Greatsword > --- INVENTORY (8) ---- Light Ion Engine Improved Hover Unit Improved Heat Sink Light Armor Plating Rocket Launcher Greatsword Shock Trap Peak State ------------ > --- POWER ------------ Improved Ion Engine > --- PROPULSION ------- Airjet Airjet Airjet Aerolev Unit > --- UTILITY ---------- Small Storage Unit Sensor Array Reaction Control System Improved Shield Generator > --- WEAPON ----------- Greatsword > --- INVENTORY -------- Light Ion Engine Improved Heat Sink Light Armor Plating Rocket Launcher Greatsword Shock Trap Shock Trap [Rating: 33] Favorites ----------- Power Light Ion Engine Engine Light Ion Engine Propulsion Airjet Leg Improved Aluminum Leg Wheel Wheel Hover Unit Airjet Utility Small Storage Unit Device Sensor Array Storage Small Storage Unit Processor Targeting Computer Weapon Light Assault Rifle Energy Gun EM Pulse Gun Ballistic Gun Light Assault Rifle Launcher Grenade Launcher Impact Weapon Flail Slashing Weapon Greatsword Build | -11 -10 -10 -9 -9 -8 ------- Run | Scr Mat Min Mat Min Mat Slots Evolved 4 | . . . 2 . 2 Power . | . . . . . . Propulsion 2 | . . . 1 . 1 Utility 2 | . . . 1 . 1 Weapon . | . . . . . . Parts Attached 28 | 6 1 . 8 1 12 Power 2 | 1 . . . . 1 Engine 2 | 1 . . . . 1 Core . | . . . . . . Reactor . | . . . . . . Propulsion 12 | 2 . . 6 . 4 Treads . | . . . . . . Leg 2 | . . . 2 . . Wheel 3 | 2 . . 1 . . Hover 7 | . . . 3 . 4 Flight . | . . . . . . Utility 6 | 1 1 . 1 . 3 Device 4 | . 1 . . . 3 Storage 1 | 1 . . . . . Processor 1 | . . . 1 . . Hackware . | . . . . . . Protection . | . . . . . . Artifact . | . . . . . . Weapon 8 | 2 . . 1 1 4 Energy Gun 1 | 1 . . . . . Energy Cannon . | . . . . . . Ballistic Gun 1 | 1 . . . . . Ballistic Cannon . | . . . . . . Launcher 3 | . . . 1 1 1 Special Weapon . | . . . . . . Impact Weapon 2 | . . . . . 2 Slashing Weapon 1 | . . . . . 1 Piercing Weapon . | . . . . . . Special Melee Weapon . | . . . . . . Unidentified Prototypes 1 | . . . . . 1 Parts Lost 1 | . . . . . 1 Power . | . . . . . . Propulsion . | . . . . . . Utility 1 | . . . . . 1 Weapon . | . . . . . . Highest Loss Streak 1 | . . . . . 1 To Critical Strikes . | . . . . . . Average Slot Usage (%) 96 | . 94 100 99 100 91 Engine 11 | . 14 14 11 11 9 Leg 3 | . . . 15 . . Wheel 10 | . 28 28 8 . . Hover 18 | . . . 7 33 35 Device 14 | . 9 14 11 11 24 Storage 11 | . 14 14 11 11 9 Processor 5 | . . . 11 11 2 Energy Gun 5 | . 14 14 7 . . Ballistic Gun 9 | . 14 14 11 11 . Launcher 3 | . . . 3 11 . Slashing Weapon 1 | . . . . . 6 Naked Turns . | . . . . . . Heaviest Build 23 | 11 12 12 13 14 23 Greatest Support 32 | 20 20 20 26 24 32 Greatest Overweight (x) 1 | . . . 1 . . Average Overweight (x) . | . . . . . . Largest Inventory Capacity 8 | 8 8 8 8 8 8 Average Capacity 7 | 6 8 8 8 8 8 Most Carried 8 | 5 4 8 8 8 8 Average Carried 6 | 1 2 6 7 8 7 Final Capacity 8 | 8 8 8 8 8 8 Final Carried 8 | . 4 8 8 8 8 Class Distribution -------------------- 100% | Mutant Dominant Class ---------------- Mutant | -10/Materials Mutant | -10/Mines Mutant | -9/Materials Mutant | -9/Mines Mutant | -8/Materials Resources | -11 -10 -10 -9 -9 -8 ----------- Run | Scr Mat Min Mat Min Mat Matter Collected 529 | 230 44 . 76 39 140 Remotely . | . . . . . . Salvage Created 839 | . 75 . 306 . 458 Parts 40 | . 3 . 19 . 18 Haulers Intercepted 1 | . . . . . 1 Recyclers Shooed . | . . . . . . Parts Field Recycled . | . . . . . . Retrieved Matter . | . . . . . . Parts Self-Destructed . | . . . . . . Prevented . | . . . . . . Kills | -11 -10 -10 -9 -9 -8 ------- Run | Scr Mat Min Mat Min Mat Combat Hostiles Destroyed 14 | . 2 . 7 . 5 Melee 5 | . . . . . 5 Guns 4 | . 1 . 3 . . AOE 5 | . 1 . 4 . . Classes Destroyed 8 | . 1 . 2 . 5 Worker 1 | . . . . . 1 Builder 2 | . . . . . 2 Hauler 1 | . . . . . 1 Recycler 3 | . . . 2 . 1 Swarmer 4 | . . . 4 . . Grunt 8 | . 2 . 3 . 3 Sentry 1 | . . . . . 1 Hunter 1 | . . . . . 1 Best Kill Streak 8 | . 2 . 8 . 8 Combat Bots Only 6 | . 2 . 6 . 3 Max Kills in Single Turn 5 | . 1 . 5 . 1 Gunslinging . | . . . . . . Exploded 3 | . 1 . 3 . . Melee 1 | . . . . . 1 Uniques/NPCs Destroyed . | . . . . . . Combat | -11 -10 -10 -9 -9 -8 -------- Run | Scr Mat Min Mat Min Mat Damage Taken 562 | . 99 . 115 28 320 Core 99 | . . . 30 . 69 Absorbed by Shields 122 | . . . . . 122 Core Remaining (%) 97 | 100 . 100 . 92 . Volleys Fired 14 | . 4 . 10 . . Largest 2 | . 2 . 2 . . Hottest 60 | . 60 . 60 . . Shots Fired 27 | . 8 . 19 . . Gun 25 | . 8 . 17 . . Cannon . | . . . . . . Launcher 2 | . . . 2 . . Special . | . . . . . . Kinetic 14 | . 4 . 10 . . Thermal . | . . . . . . Explosive 2 | . . . 2 . . Electromagnetic 11 | . 4 . 7 . . Robot Hit Streak 3 | . 3 . 3 . . Robot Miss Streak 2 | . 1 . 2 . . Penetration Max . | . . . . . . Secondary Targets 1 | . . . 1 . . Max Gunslinging Chain 1 | . . . 1 . . Shots Hit Robots 36 | . 6 . 9 . 21 Core Hits 22 | . 4 . 11 . 7 Critical Kills . | . . . . . . Critical Parts Destroyed . | . . . . . . Critical Strikes 2 | . . . . . 2 Sever 2 | . . . . . 2 Melee Attacks 24 | . . . . . 24 Impact . | . . . . . . Slashing 24 | . . . . . 24 Piercing . | . . . . . . Sneak Attacks 7 | . . . . . 7 Combat Hostiles 1 | . . . . . 1 Follow-up Attacks . | . . . . . . Damage Inflicted 1999 | . 158 . 347 . 1494 Guns 165 | . 72 . 93 . . Cannons . | . . . . . . Explosions 340 | . 86 . 254 . . Melee 1494 | . . . . . 1494 Ramming . | . . . . . . Kinetic 55 | . 19 . 36 . . Thermal 86 | . 86 . . . . Explosive 254 | . . . 254 . . Electromagnetic 110 | . 53 . 57 . . Impact . | . . . . . . Slashing 1494 | . . . . . 1494 Piercing . | . . . . . . Highest Corruption 1 | . . . 1 1 . Average Corruption 1 | . . . 1 1 . Corruption Purged . | . . . . . . Corruption Blocked . | . . . . . . Effects 7 | . . . 2 5 . Message Errors 1 | . . . . 1 . Matter Fused 2 | . . . 1 1 . Energy Discharges 2 | . . . . 2 . Data Loss (minor) 1 | . . . . 1 . Data Loss (major) 1 | . . . 1 . . Overload Shots . | . . . . . . Overflow Damage 347 | . . . 57 . 290 Projectiles . | . . . . . . Explosions 57 | . . . 57 . . Melee 290 | . . . . . 290 Knockbacks . | . . . . . . Impact . | . . . . . . Kinetic . | . . . . . . Secondary . | . . . . . . Self-Inflicted Damage 41 | . 41 . . . . Shots 1 | . 1 . . . . Rammed . | . . . . . . Targets Rammed . | . . . . . . Kicked . | . . . . . . Crushed . | . . . . . . Highest Temperature 59 | . 59 . 34 13 . Average Temperature 20 | . 36 . 11 13 . Received Heat Transfer 225 | . 33 . 42 36 114 Siege Activations . | . . . . . . Robots Corrupted . | . . . . . . Combat Hostiles . | . . . . . . Parts Fried . | . . . . . . Impact Corruptions . | . . . . . . Robots Melted . | . . . . . . Combat Hostiles . | . . . . . . Parts Melted 2 | . . . 2 . . Heat Transferred 100 | . 100 . . . . Parts Sabotaged . | . . . . . . Parts Stolen . | . . . . . . Parts Stripped . | . . . . . . Power Chain Reactions 1 | . 1 . . . . Missiles Intercepted . | . . . . . . Alert | -11 -10 -10 -9 -9 -8 ------- Run | Scr Mat Min Mat Min Mat Peak Influence 290 | . 71 27 290 142 270 Initial 112 | . . 27 10 112 55 Average 90 | . 13 27 120 117 132 Maximum Alert Level 1 | . . . 1 . 1 Low Security (%) 86 | 100 100 100 70 100 72 Level 1 13 | . . . 30 . 27 Level 2 . | . . . . . . Level 3 . | . . . . . . Level 4 . | . . . . . . Level 5 . | . . . . . . High Security . | . . . . . . Max Security . | . . . . . . Squads Dispatched 3 | . . . 1 . 2 Investigation 1 | . . . 1 . . Extermination . | . . . . . . Reinforcement 2 | . . . . . 2 Assault . | . . . . . . Garrison . | . . . . . . Intercept . | . . . . . . Searches Triggered . | . . . . . . Construction Impeded 1 | . . . . . 1 Haulers Reinforced . | . . . . . . Active Scanning Responses . | . . . . . . Cargo Convoy Interrupts . | . . . . . . Stealth | -11 -10 -10 -9 -9 -8 --------- Run | Scr Mat Min Mat Min Mat Distress Signals 2 | . . . 1 . 1 Communications Jammed . | . . . . . . Distress Signals . | . . . . . . Times Spotted 27 | . 3 . 9 2 13 Peak Tracking Total 5 | . 2 . 5 2 4 Tactical Retreats 1 | . . . . . 1 Traps | -11 -10 -10 -9 -9 -8 ------- Run | Scr Mat Min Mat Min Mat Traps Triggered 1 | . . . . . 1 Indirectly . | . . . . . . Trap Hack Attempts . | . . . . . . Triggered . | . . . . . . Disarmed . | . . . . . . Reprogrammed . | . . . . . . Reused . | . . . . . . Traps Extracted . | . . . . . . Installed . | . . . . . . Triggered . | . . . . . . Most Traps Carried 3 | . . 3 3 3 2 Machines | -11 -10 -10 -9 -9 -8 ---------- Run | Scr Mat Min Mat Min Mat Machines Disabled 2 | . . . 2 . . Max in Single Turn 1 | . . . 1 . . Machines Sabotaged . | . . . . . . Garrisons Compromised . | . . . . . . Overloaded Fab Kills . | . . . . . . Hacking | -11 -10 -10 -9 -9 -8 --------- Run | Scr Mat Min Mat Min Mat Machines Accessed 5 | . 1 . 2 . 2 Terminals 4 | . 1 . 2 . 1 Fabricators . | . . . . . . Repair Stations . | . . . . . . Recycling Units . | . . . . . . Scanalyzers 1 | . . . . . 1 Garrison Access . | . . . . . . Total Hacks 19 | . 3 . 4 . 12 Successful 14 | . . . 2 . 12 Failed 5 | . 3 . 2 . . Catastrophic 1 | . . . 1 . . Database Lockouts . | . . . . . . Manual . | . . . . . . Terminals 8 | . 3 . 4 . 1 Fabricators . | . . . . . . Repair Stations . | . . . . . . Recycling Units . | . . . . . . Scanalyzers 11 | . . . . . 11 Garrison Access . | . . . . . . Terminal Hacks 3 | . . . 2 . 1 Emergency Access Points 1 | . . . 1 . . Locate Traps 1 | . . . . . 1 Hauler Manifests 1 | . . . 1 . . Fabricator Hacks . | . . . . . . Repair Station Hacks . | . . . . . . Recycling Unit Hacks . | . . . . . . Scanalyzer 11 | . . . . . 11 Insert Component 5 | . . . . . 5 Analyze 6 | . . . . . 6 Garrison Access Hacks . | . . . . . . Unauthorized Hacks . | . . . . . . Terminals . | . . . . . . Fabricators . | . . . . . . Repair Stations . | . . . . . . Recycling Units . | . . . . . . Scanalyzers . | . . . . . . Garrison Access . | . . . . . . Data Cores Recovered . | . . . . . . Used . | . . . . . . Hacking Detections 2 | . 1 . 1 . . Full Trace Events 1 | . . . 1 . . Feedback Events 1 | . . . 1 . . Corruption 1 | . . . 1 . . Feedback Blocked . | . . . . . . Robot Schematics Acquired . | . . . . . . Robots Built . | . . . . . . Authchips . | . . . . . . Time . | . . . . . . Total Robot Build Rating . | . . . . . . Part Schematics Acquired 5 | . . . . . 5 Parts Built . | . . . . . . Authchips . | . . . . . . Time . | . . . . . . Total Part Build Rating . | . . . . . . Parts Repaired . | . . . . . . Time . | . . . . . . Parts Recycled . | . . . . . . Recycled Matter . | . . . . . . Retrieved Matter . | . . . . . . Retrieved Components . | . . . . . . Parts Scanalyzed 5 | . . . . . 5 Part Schematics Acquired 5 | . . . . . 5 Parts Damaged . | . . . . . . Bothacking | -11 -10 -10 -9 -9 -8 ------------ Run | Scr Mat Min Mat Min Mat Used RIF Installer . | . . . . . . Robots Hacked . | . . . . . . Non-combat . | . . . . . . Combat . | . . . . . . Robot Hacks Applied . | . . . . . . Relay Couplers Released . | . . . . . . Fabnet Peak Effective % . | . . . . . . Robots Rewired . | . . . . . . Allies Hacked . | . . . . . . Hacks Repelled . | . . . . . . Allies | -11 -10 -10 -9 -9 -8 -------- Run | Scr Mat Min Mat Min Mat Total Allies 4 | . . 4 . . . Largest Group 4 | . . 4 4 2 1 Highest-Rated Group 71 | . . 71 71 47 16 Highest-Rated Ally 31 | . . 31 31 31 16 Total Orders . | . . . . . . Ally Attacks 43 | . . . 29 2 12 Total Damage 466 | . . . 329 31 106 Kills 4 | . . . 3 . 1 Allies Corrupted . | . . . . . . Allies Melted . | . . . . . . Intel | -11 -10 -10 -9 -9 -8 ------- Run | Scr Mat Min Mat Min Mat Robot Analysis Total . | . . . . . . Derelict Logs Recovered 5 | . . 2 . 3 . Drone Launches . | . . . . . . Drone Recoveries . | . . . . . . Exploration | -11 -10 -10 -9 -9 -8 ------------- Run | Scr Mat Min Mat Min Mat Turns Passed 1173 | 44 142 183 240 265 299 Spaces Moved 1082 | 51 152 213 198 272 196 Core 28 | 28 . . . . . Treads . | . . . . . . Legs 43 | . . . 43 . . Wheels 488 | 23 152 213 100 . . Hover 523 | . . . 55 272 196 Flight . | . . . . . . Fastest Speed 48 | 50 80 80 52 52 48 Average Speed 67 | 63 80 80 86 52 48 Slowest Speed 125 | 80 80 80 125 52 52 Overloaded Moves . | . . . . . . Propulsion Burnouts . | . . . . . . Robots Hopped . | . . . . . . Cave-ins Triggered . | . . . . . . Exploration Rate (%) 31 | 4 32 62 20 57 13 Regions Visited 5 Branch Regions 2 Pre-discovered Areas 2 | . . 1 . 1 . Known Exits Taken . | . . . . . . Unknown Exits Taken 5 | 1 1 1 1 1 . Scrap Searched 1 | . . . . 1 . Spaces Dug . | . . . . . . Terrain Destroyed 6 | . 6 . . . . Melee . | . . . . . . Projectile . | . . . . . . AOE 6 | . 6 . . . . Terrain Rammed . | . . . . . . Walls Destroyed . | . . . . . . Machines Disabled . | . . . . . . Actions | -11 -10 -10 -9 -9 -8 --------- Run | Scr Mat Min Mat Min Mat Total 1451 | 61 164 225 250 396 355 Wait 261 | . 3 9 23 121 105 Move 1077 | 50 151 212 197 271 196 Hop . | . . . . . . Pick Up 26 | 5 5 4 5 1 6 Fast Attach 7 | 1 . . 3 . 3 Attach 14 | 5 1 . 2 . 6 Detach 3 | . . . . . 3 Swap 7 | . . . 3 1 3 Drop 18 | . . . 7 2 9 Fire 14 | . 4 . 10 . . Melee 24 | . . . . . 24 Ram . | . . . . . . Kick . | . . . . . . Crush . | . . . . . . Escape Stasis . | . . . . . . Rewire . | . . . . . . Trap . | . . . . . . Miscellaneous . | . . . . . . Route ------- -11/Scrapyard -10/Materials -10/Mines -9/Materials -9/Mines -8/Materials (discovered 1 exit: Fac) History --------- Turn | Location | Event 7 | -11/Scrapyard | Discovered new exit (range 15) 45 | -11/Scrapyard | Entered Materials 178 | -10/Materials | Discovered new exit (range 9) 187 | -10/Materials | Entered Mines 194 | -10/Mines | YI-UF0 nonchalantly dropped a Grenade Launcher on the ground 218 | -10/Mines | Assisted by bots powering up and referring to "LRC-V3" 278 | -10/Mines | Learned location of Storage (-7) 280 | -10/Mines | Learned Materials terminal intel 296 | -10/Mines | Found a hidden stash of uninstalled traps 302 | -10/Mines | Build established: Mutant 355 | -10/Mines | Discovered new exit (range 6) 358 | -10/Mines | Received a Mining Laser from a helpful Derelict 370 | -10/Mines | Entered Materials 370 | -9/Materials | Accompanied by 4 allies 370 | -9/Materials | Evolved 2 slots: Propulsion x1, Utility x1 371 | -9/Materials | Loaded intel: 12 terminal locations 474 | -9/Materials | Discovered new exit (range 16) 610 | -9/Materials | Entered Mines 610 | -9/Mines | Accompanied by 2 allies 622 | -9/Mines | Learned location of 1 exit from Materials 789 | -9/Mines | Received a Rocket Launcher from a helpful Derelict 864 | -9/Mines | Discovered new exit (range 6) 866 | -9/Mines | Learned location of Zion (-6) 868 | -9/Mines | Learned Materials terminal intel 875 | -9/Mines | Entered Materials 875 | -8/Materials | Accompanied by 1 ally 875 | -8/Materials | Evolved 2 slots: Propulsion x1, Utility x1 876 | -8/Materials | Identified exit to Factory 877 | -8/Materials | Loaded intel: 12 terminal locations 1174 | -8/Materials | Self-destructed Last Messages --------------- 01096_ Destroyed Wheel. 01096_ Destroyed Welding Torch. 01099_ Destroyed Wheel. 01100_ ALERT: Construction progress impeded, dispatching reinforcements to local area. 01103_ U-05 Engineer lays Concrete. 01108_ G-47 Trooper destroyed. 01121_ K-01 Serf collects debris. 01141_ Connecting with Terminal... >>Traps(Locate) Found 6 traps in 1 array: 6x Shock Trap Map updated. 01144_ K-01 Serf collects debris. 01154_ Sneak attack on Y-45 Defender. 01154_ Y-45 Defender Lgt. Treads severed. 01158_ Y-45 Defender Beam Rifle severed. 01165_ K-01 Serf collects debris. 01170_ Reaction Control System destroyed. 01171_ Destroyed Lgt. Armor Plating. Map ----- +----------------------------------------------------+ | ""???????????????????????????# # #### = # # | | ?????????????????????????????# + !# # | | ?????????????????????????????### #### # # | | ???????????????????????????????# #??######## # | | ???????????????????????????????# #?????????# # | | ???????????????????????????????# #?????????# # | | ???????????????"T"?????????????# ########### # | | ?????????????^???????########### # | | ????????????^?^??????# !# # | | ????????????^????????# # * # | | ???????????????^?????# #!############# # | | ?????????????????????# #%##??????????? # | | ????????????^????????# ?[ #%##??????????? # | | ?????????????? + [[ #%##??????????? ? | | ????????????? # #?#???????????????? | | ?????????????? ????# #*#???????????????? | | ???????""????????????###########&#######?????????? | | ???????T"????????????????????#%==#[ #?????????? | | ???????""????????????????????#!*%=[* #?????????? | | ?????????????????????????????#?[%#[ ##?????????? | | ?????????????????????????????# [######??????????? | | ?????????????????????????????#? #???????????????? | | ?????????????????????????????#%= #???????????????? | | ????????????????????????????##!% ##??????????????? | | ????????????????# =#######!= #??????????????? | | ????????????????# k Y@[= #??????????????? | | ?????????????T??# gg T #??????????????? | | ????????????????# g #??????????????? | | ????????????????# ####### #??????????????? | | ????????????????#####???????#######??????????????? | | ?????????????????????????????????????????????????? | | ?????????????????????????????????????????????????? | | ?????????????????????????????????????????????????? | | ?????????????????????????????????????????????????? | | ?????????????????????????????????????????????????? | | ?????????????????????????????????????????????????? | | ?????????????????????????????????????????????????? | | ?????????????????????????????????????????????????? | | ?????????????????????????????????????????????????? | | ?????????????????????????????????????????????????? | | ?????????????????????????????????????????????????? | | ?????????????????????????????????????????????????? | | ?????????????????????????????????????????????????? | | ?????????????????????????????????????????????????? | | ?????????????????????????????????????????????????? | | ?????????????????????????????????????????????????? | | ?????????????????????????????????????????????????? | | ?????????????????????????????????????????????????? | | ?????????????????????????????????????????????????? | | ?????????????????????????????????????????????????? | +----------------------------------------------------+ Best States ------------- Heat Dissipation 31 Energy Generation 12 Energy Capacity 265 Matter Stores 300 Matter Capacity 300 Sight Range 16 Robot Scan Range 14 Terrain Scan Density 10 Evasion (%) 63 Targeting Accuracy 5 Item Schematics ----------------- Flail | -8/Materials | Scanalyzed Airjet | -8/Materials | Scanalyzed Reaction Control System | -8/Materials | Scanalyzed Arm. Treads | -8/Materials | Scanalyzed Greatsword | -8/Materials | Scanalyzed Robot Schematics ------------------ None Fabricated ------------ Nothing Alien Tech Used ----------------- None Achievements -------------- None Challenges ------------ None Game ------ Seed TitaniumChromaticWings Manual? 0 Play Time 00:16:49 Cumulative 40.1 hours Start 2022.03.25 @ 10:27:53 End 2022.03.27 @ 12:52:08 Sessions 1 Manual Loads 0 Difficulty Rogue Special Mode None Game No. 119 Rogue 119 Adventurer 0 Explorer 0 Win Type - Total 0 Types 0/0/0/0/0/0/0/0/0 Lore% 32 Gallery% 45 Achievement% 34 Wizard Run 0 Options --------- ASCII 0 Keyboard 0 Movement Arrows Keybinds 0 Fullscreen 1 Font 18/SmallcapsGlow Map View 76x50 Tactical HUD 1 Map Filters NONE Filters NONE Steam 1 RUN: 30daca08-36ac-4c12-a8bf-65f4a01b4607